fUSD/lending_fUSD_20250107
["ID","MTS","AMOUNT","RATE_DAILY","PERIOD"]
[348013520,1736267445791,-514.52,0.00010133,2]
[348013522,1736267445801,-150.2899593,0.00010133,2]
[348013524,1736267445810,-628.56,0.00010133,2]
[348013526,1736267445820,-500.0,0.00010133,2]
[348013528,1736267445829,-543.85,0.00010133,2]
[348013530,1736267445839,-500.0,0.00010133,2]
[348013532,1736267445848,-500.0,0.00010133,2]
[348013534,1736267445857,-500.0,0.00010133,2]
[348013536,1736267445867,-500.0,0.00010133,2]
[348013538,1736267445877,-627.63,0.00010133,2]
[348013540,1736267445886,-500.0,0.00010133,2]
[348013542,1736267445895,-500.0,0.00010133,2]
[348013544,1736267445905,-500.0,0.00010133,2]
[348013546,1736267445914,-500.0,0.00010133,2]
[348013548,1736267445924,-500.0,0.00010133,2]
[348013550,1736267445933,-500.0,0.00010133,2]
[348013552,1736267445942,-500.0,0.00010133,2]
[348013554,1736267445952,-500.0,0.00010133,2]
[348013556,1736267445961,-500.0,0.00010133,2]
[348013564,1736267446034,-500.0,0.00010133,2]
[348013566,1736267446044,-501.28082257,0.00010133,2]
[348013568,1736267446053,-500.0,0.00010133,2]
[348013570,1736267446062,-500.0,0.00010133,2]
[348013572,1736267446071,-500.0,0.00010133,2]
[348013574,1736267446081,-500.0,0.00010133,2]
[348013576,1736267446090,-500.0,0.00010133,2]
[348013578,1736267446099,-500.0,0.00010133,2]
[348013580,1736267446110,-572.68,0.00010133,2]
[348013583,1736267446120,-500.0,0.00010133,2]
[348013585,1736267446129,-500.0,0.00010133,2]
[348013588,1736267446138,-511.83,0.00010133,2]
[348013590,1736267446147,-500.0,0.00010133,2]
[348013592,1736267446157,-500.0,0.00010133,2]
[348013594,1736267446166,-500.0,0.00010133,2]
[348013596,1736267446176,-500.0,0.00010133,2]
[348013599,1736267446188,-500.0,0.00010133,2]
[348013601,1736267446198,-500.58353621,0.00010133,2]
[348013603,1736267446207,-500.0,0.00010133,2]
[348013605,1736267446216,-500.0,0.00010133,2]
[348013606,1736267446226,-500.0,0.00010133,2]
[348013608,1736267446239,-500.0,0.00010133,2]
[348013610,1736267446248,-500.0,0.00010133,2]
[348013612,1736267446258,-500.0,0.00010133,2]
[348013615,1736267446269,-500.0,0.00010133,2]
[348013617,1736267446281,-500.0,0.00010133,2]
[348013619,1736267446291,-500.0,0.00010133,2]
[348013621,1736267446301,-500.0,0.00010133,2]
[348013623,1736267446310,-500.0,0.00010133,2]
[348013625,1736267446319,-500.0,0.00010133,2]
[348013627,1736267446328,-500.0,0.00010133,2]
[348013629,1736267446337,-500.0,0.00010133,2]
[348013630,1736267446348,-500.0,0.00010133,2]
[348013632,1736267446358,-500.0,0.00010133,2]
[348013634,1736267446368,-500.0,0.00010133,2]
[348013636,1736267446377,-500.0,0.00010133,2]
[348013638,1736267446387,-500.0,0.00010133,2]
[348013641,1736267446396,-525.68302581,0.00010133,2]
[348013643,1736267446406,-703.59,0.00010133,2]
[348013644,1736267446415,-500.0,0.00010133,2]
[348013646,1736267446425,-500.0,0.00010133,2]
[348013648,1736267446434,-500.0,0.00010133,2]
[348013650,1736267446443,-500.0,0.00010133,2]
[348013652,1736267446452,-500.0,0.00010133,2]
[348013654,1736267446462,-500.0,0.00010133,2]
[348013657,1736267446471,-500.0,0.00010133,2]
[348013658,1736267446483,-501.17817601,0.00010133,2]
[348013661,1736267446492,-501.27887555,0.00010133,2]
[348013663,1736267446502,-500.0,0.00010133,2]
[348013664,1736267446511,-500.0,0.00010133,2]
[348013667,1736267446521,-513.44,0.00010133,2]
[348013669,1736267446530,-500.0,0.00010133,2]
[348013671,1736267446539,-500.0,0.00010133,2]
[348013672,1736267446548,-500.0,0.00010133,2]
[348013674,1736267446558,-500.0,0.00010133,2]
[348013676,1736267446567,-500.0,0.00010133,2]
[348013679,1736267446576,-500.0,0.00010133,2]
[348013681,1736267446586,-501.45305014,0.00010133,2]
[348013683,1736267446595,-501.13836844,0.00010133,2]
[348013684,1736267446605,-500.0,0.00010133,2]
[348013686,1736267446614,-500.0,0.00010133,2]
[348013688,1736267446623,-500.0,0.00010133,2]
[348013690,1736267446633,-500.0,0.00010133,2]
[348013692,1736267446643,-510.71,0.00010133,2]
[348013694,1736267446652,-500.0,0.00010133,2]
[348013696,1736267446661,-500.0,0.00010133,2]
[348013698,1736267446671,-500.0,0.00010133,2]
[348013701,1736267446680,-500.0,0.00010133,2]
[348013702,1736267446690,-500.0,0.00010133,2]
[348013704,1736267446699,-519.72,0.00010133,2]
[348013706,1736267446708,-500.0,0.00010133,2]
[348013708,1736267446717,-500.0,0.00010133,2]
[348013710,1736267446728,-500.0,0.00010133,2]
[348013713,1736267446737,-510.07013657,0.00010133,2]
[348013715,1736267446747,-500.0,0.00010133,2]
[348013717,1736267446756,-500.0,0.00010133,2]
[348013718,1736267446765,-500.0,0.00010133,2]
[348013720,1736267446774,-500.0,0.00010133,2]
[348013723,1736267446784,-500.0,0.00010133,2]
[348013724,1736267446793,-500.0,0.00010133,2]
[348013726,1736267446802,-500.0,0.00010133,2]
[348013728,1736267446811,-301.29,0.00010133,2]
[348013730,1736267446820,-500.0,0.00010133,2]
[348013734,1736267446830,-562.12,0.00010133,2]
[348013737,1736267446839,-646.83,0.00010133,2]
[348013739,1736267446849,-500.0,0.00010133,2]
[348013742,1736267446858,-501.85269262,0.00010133,2]
[348013745,1736267446867,-500.0,0.00010133,2]
[348013749,1736267446876,-500.28128623,0.00010133,2]
[348013751,1736267446886,-500.0,0.00010133,2]
[348013753,1736267446896,-500.0,0.00010133,2]
[348013755,1736267446905,-500.96580597,0.00010133,2]
[348013757,1736267446914,-617.2,0.00010133,2]
[348013759,1736267446924,-735.56,0.00010133,2]
[348013761,1736267446933,-500.0,0.00010133,2]
[348013763,1736267446942,-500.27018052,0.00010133,2]
[348013764,1736267446951,-504.26840815,0.00010133,2]
[348013766,1736267446960,-314.29316386,0.00010133,2]
[348013769,1736267446970,-500.0,0.00010133,2]
[348013771,1736267446981,-500.0,0.00010133,2]
[348013772,1736267446990,-500.0,0.00010133,2]
[348013775,1736267447000,-500.0,0.00010133,2]
[348013777,1736267447009,-501.08635958,0.00010133,2]
[348013779,1736267447019,-500.72453981,0.00010133,2]
[348013781,1736267447028,-500.0,0.00010133,2]
[348013782,1736267447038,-500.0,0.00010133,2]
[348013784,1736267447047,-500.0,0.00010133,2]
[348013787,1736267447057,-500.47844472,0.00010133,2]
[348013789,1736267447066,-500.0,0.00010133,2]
[348013791,1736267447076,-500.0,0.00010133,2]
[348013792,1736267447085,-500.0,0.00010133,2]
[348013794,1736267447095,-500.0,0.00010133,2]
[348013796,1736267447104,-501.63746904,0.00010133,2]
[348013798,1736267447117,-500.98172357,0.00010133,2]
[348013800,1736267447126,-500.0,0.00010133,2]
[348013802,1736267447136,-513.88,0.00010133,2]
[348013804,1736267447145,-500.0,0.00010133,2]
[348013806,1736267447154,-500.0,0.00010133,2]
[348013808,1736267447164,-500.0,0.00010133,2]
[348013810,1736267447173,-500.0,0.00010133,2]
[348013812,1736267447183,-500.0,0.00010133,2]
[348013814,1736267447192,-500.0,0.00010133,2]
[348013817,1736267447203,-434.04682333,0.00010133,2]
[348013819,1736267447212,-500.0,0.00010133,2]
[348013821,1736267447221,-500.0,0.00010133,2]
[348013823,1736267447232,-500.0,0.00010133,2]
[348013825,1736267447241,-500.0,0.00010133,2]
[348013827,1736267447250,-500.0,0.00010133,2]
[348013829,1736267447260,-500.0,0.00010133,2]
[348013831,1736267447269,-542.54,0.00010133,2]
[348013833,1736267447282,-500.0,0.00010133,2]
[348013835,1736267447291,-500.0,0.00010133,2]
[348013836,1736267447300,-500.0,0.00010133,2]
[348013839,1736267447310,-500.0,0.00010133,2]
[348013841,1736267447320,-500.0,0.00010133,2]
[348013843,1736267447329,-500.0,0.00010133,2]
[348013845,1736267447338,-500.0,0.00010133,2]
[348013847,1736267447348,-645.55,0.00010133,2]
[348013849,1736267447357,-500.0,0.00010133,2]
[348013851,1736267447366,-500.0,0.00010133,2]
[348013852,1736267447375,-2280.46,0.00010133,2]
[348013855,1736267447385,-500.0,0.00010133,2]
[348013856,1736267447395,-519.54,0.00010133,2]
[348013858,1736267447405,-306.35948099,0.00010133,2]
[348013860,1736267447414,-500.0,0.00010133,2]
[348013863,1736267447423,-500.0,0.00010133,2]
[348013865,1736267447433,-500.0,0.00010133,2]
[348013867,1736267447442,-500.0,0.00010133,2]
[348013869,1736267447451,-500.0,0.00010133,2]
[348013871,1736267447460,-508.3706551,0.00010133,2]
[348013872,1736267447469,-502.78501741,0.00010133,2]
[348013875,1736267447479,-500.0,0.00010133,2]
[348013877,1736267447488,-500.0,0.00010133,2]
[348013878,1736267447497,-500.0,0.00010133,2]
[348013881,1736267447507,-500.0,0.00010133,2]
[348013883,1736267447517,-500.0,0.00010133,2]
[348013885,1736267447526,-500.0,0.00010133,2]
[348013887,1736267447535,-500.0,0.00010133,2]
[348013889,1736267447545,-500.0,0.00010133,2]
[348013891,1736267447554,-508.92,0.00010133,2]
[348013893,1736267447563,-500.0,0.00010133,2]
[348013894,1736267447572,-500.0,0.00010133,2]
[348013896,1736267447581,-500.0,0.00010133,2]
[348013899,1736267447591,-502.01857993,0.00010133,2]
[348013900,1736267447601,-500.0,0.00010133,2]
[348013903,1736267447610,-641.04,0.00010133,2]
[348013905,1736267447620,-500.0,0.00010133,2]
[348013907,1736267447629,-500.0,0.00010133,2]
[348013909,1736267447641,-500.0,0.00010133,2]
[348013911,1736267447650,-500.0,0.00010133,2]
[348013913,1736267447659,-500.0,0.00010133,2]
[348013915,1736267447667,-500.0,0.00010133,2]
[348013917,1736267447677,-723.03,0.00010133,2]
[348013919,1736267447686,-500.0,0.00010133,2]
[348013921,1736267447695,-500.0,0.00010133,2]
[348013923,1736267447704,-530.06,0.00010133,2]
[348013925,1736267447713,-500.0,0.00010133,2]
[348013927,1736267447721,-500.0,0.00010133,2]
[348013929,1736267447731,-500.0,0.00010133,2]
[348013931,1736267447740,-500.0,0.00010133,2]
[348013932,1736267447748,-500.0,0.00010133,2]
[348013934,1736267447758,-500.0,0.00010133,2]
[348013937,1736267447767,-500.0,0.00010133,2]
[348013939,1736267447776,-732.85,0.00010133,2]
[348013941,1736267447786,-500.0,0.00010133,2]
[348013943,1736267447795,-500.0,0.00010133,2]
[348013945,1736267447804,-500.0,0.00010133,2]
[348013947,1736267447813,-500.0,0.00010133,2]
[348013949,1736267447822,-500.0,0.00010133,2]
[348013951,1736267447831,-500.0,0.00010133,2]
[348013952,1736267447841,-500.0,0.00010133,2]
[348013954,1736267447850,-500.0,0.00010133,2]
[348013956,1736267447859,-500.0,0.00010133,2]
[348013958,1736267447868,-500.0,0.00010133,2]
[348013960,1736267447877,-500.0,0.00010133,2]
[348013962,1736267447887,-500.0,0.00010133,2]
[348013965,1736267447896,-500.0,0.00010133,2]
[348013967,1736267447905,-500.0,0.00010133,2]
[348013969,1736267447915,-500.0,0.00010133,2]
[348013971,1736267447925,-500.0,0.00010133,2]
[348013972,1736267447935,-495.09982897,0.00010133,2]
[348013974,1736267447945,-500.0,0.00010133,2]
[348013976,1736267447954,-500.0,0.00010133,2]
[348013978,1736267447963,-502.76033986,0.00010133,2]
[348013980,1736267447972,-500.0,0.00010133,2]
[348013982,1736267447982,-500.0,0.00010133,2]
[348013984,1736267447991,-500.0,0.00010133,2]
[348013986,1736267448001,-500.0,0.00010133,2]
[348013989,1736267448012,-500.0,0.00010133,2]
[348013991,1736267448021,-500.0,0.00010133,2]
[348013993,1736267448030,-500.0,0.00010133,2]
[348013995,1736267448040,-502.69329577,0.00010133,2]
[348013997,1736267448049,-500.0,0.00010133,2]
[348013998,1736267448058,-500.0,0.00010133,2]
[348014000,1736267448067,-500.0,0.00010133,2]
[348014002,1736267448077,-500.0,0.00010133,2]
[348014004,1736267448086,-500.0,0.00010133,2]
[348014007,1736267448096,-500.0,0.00010133,2]
[348014009,1736267448107,-501.61576991,0.00010133,2]
[348014011,1736267448120,-500.0,0.00010133,2]
[348014013,1736267448129,-500.0,0.00010133,2]
[348014015,1736267448138,-500.0,0.00010133,2]
[348014016,1736267448148,-500.0,0.00010133,2]
[348014018,1736267448158,-500.0,0.00010133,2]
[348014020,1736267448167,-301.01012251,0.00010133,2]
[348014022,1736267448177,-500.0,0.00010133,2]
[348014024,1736267448187,-500.0,0.00010133,2]
[348014026,1736267448196,-500.0,0.00010133,2]
[348014028,1736267448205,-499.58818345,0.00010133,2]
[348014030,1736267448214,-500.0,0.00010133,2]
[348014032,1736267448224,-500.0,0.00010133,2]
[348014033,1736267448233,-500.0,0.00010133,2]
[348014034,1736267448242,-500.0,0.00010133,2]
[348014035,1736267448252,-500.0,0.00010133,2]
[348014036,1736267448261,-500.0,0.00010133,2]
[348014037,1736267448270,-500.0,0.00010133,2]
[348014038,1736267448280,-500.0,0.00010133,2]
[348014039,1736267448290,-500.0,0.00010133,2]
[348014040,1736267448299,-500.0,0.00010133,2]
[348014041,1736267448308,-500.0,0.00010133,2]
[348014042,1736267448317,-500.0,0.00010133,2]
[348014043,1736267448326,-715.02,0.00010133,2]
[348014044,1736267448335,-578.91,0.00010133,2]
[348014046,1736267448345,-500.0,0.00010133,2]
[348014048,1736267448354,-500.0,0.00010133,2]
[348014050,1736267448363,-500.0,0.00010133,2]
[348014052,1736267448372,-500.0,0.00010133,2]
[348014054,1736267448382,-500.0,0.00010133,2]
[348014056,1736267448391,-503.81,0.00010133,2]
[348014058,1736267448401,-500.0,0.00010133,2]
[348014060,1736267448411,-500.0,0.00010133,2]
[348014062,1736267448420,-500.0,0.00010133,2]
[348014064,1736267448430,-500.0,0.00010133,2]
[348014066,1736267448439,-205.94,0.00010133,2]
[348014068,1736267448449,-500.0,0.00010133,2]
[348014070,1736267448458,-500.0,0.00010133,2]
[348014072,1736267448467,-500.0,0.00010133,2]
[348014074,1736267448477,-500.0,0.00010133,2]
[348014076,1736267448488,-500.0,0.00010133,2]
[348014078,1736267448498,-500.0,0.00010133,2]
[348014080,1736267448507,-500.0,0.00010133,2]
[348014082,1736267448517,-500.0,0.00010133,2]
[348014084,1736267448527,-500.0,0.00010133,2]
[348014086,1736267448537,-500.44417772,0.00010133,2]
[348014088,1736267448547,-500.0,0.00010133,2]
[348014090,1736267448556,-500.0,0.00010133,2]
[348014092,1736267448565,-500.0,0.00010133,2]
[348014094,1736267448575,-500.0,0.00010133,2]
[348014096,1736267448584,-500.0,0.00010133,2]
[348014098,1736267448594,-607.34,0.00010133,2]
[348014100,1736267448603,-500.0,0.00010133,2]
[348014102,1736267448612,-500.0,0.00010133,2]
[348014104,1736267448622,-500.0,0.00010133,2]
[348014106,1736267448631,-500.0,0.00010133,2]
[348014108,1736267448641,-500.0,0.00010133,2]
[348014110,1736267448650,-500.0,0.00010133,2]
[348014112,1736267448659,-500.0,0.00010133,2]
[348014115,1736267448669,-500.0,0.00010133,2]
[348014117,1736267448678,-500.0,0.00010133,2]
[348014119,1736267448690,-500.0,0.00010133,2]
[348014121,1736267448699,-502.61929144,0.00010133,2]
[348014123,1736267448709,-500.0,0.00010133,2]
[348014125,1736267448720,-500.0,0.00010133,2]
[348014127,1736267448729,-500.0,0.00010133,2]
[348014129,1736267448739,-500.0,0.00010133,2]
[348014131,1736267448748,-500.0,0.00010133,2]
[348014133,1736267448757,-500.0,0.00010133,2]
[348014135,1736267448767,-501.00592784,0.00010133,2]
[348014137,1736267448776,-500.0,0.00010133,2]
[348014139,1736267448786,-500.0,0.00010133,2]
[348014141,1736267448795,-207.96294637,0.00010133,2]
[348014143,1736267448805,-500.98535606,0.00010133,2]
[348014145,1736267448814,-500.0,0.00010133,2]
[348014147,1736267448823,-500.0,0.00010133,2]
[348014149,1736267448833,-500.91611661,0.00010133,2]
[348014151,1736267448843,-500.0,0.00010133,2]
[348014153,1736267448852,-500.0,0.00010133,2]
[348014155,1736267448862,-505.44137741,0.00010133,2]
[348014157,1736267448871,-500.0,0.00010133,2]
[348014159,1736267448880,-500.0,0.00010133,2]
[348014161,1736267448890,-616.84,0.00010133,2]
[348014163,1736267448899,-500.0,0.00010133,2]
[348014165,1736267448910,-500.0,0.00010133,2]
[348014167,1736267448919,-500.0,0.00010133,2]
[348014169,1736267448929,-500.0,0.00010133,2]
[348014171,1736267448939,-500.0,0.00010133,2]
[348014173,1736267448950,-500.0,0.00010133,2]
[348014175,1736267448960,-500.0,0.00010133,2]
[348014177,1736267448971,-500.0,0.00010133,2]
[348014179,1736267448983,-301.53017367,0.00010133,2]
[348014181,1736267448993,-500.0,0.00010133,2]
[348014183,1736267449003,-500.0,0.00010133,2]
[348014185,1736267449013,-500.0,0.00010133,2]
[348014187,1736267449023,-1448.07,0.00010134,2]
[348014189,1736267449032,-1264.08,0.00010134,2]
[348014191,1736267449043,-1419.04,0.00010134,2]
[348014193,1736267449052,-1856.64,0.00010134,2]
[348014195,1736267449062,-500.0,0.00010134,2]
[348014197,1736267449072,-1575.92,0.00010134,2]
[348014199,1736267449082,-1020.41,0.00010134,2]
[348014201,1736267449092,-2222.75,0.00010134,2]
[348014203,1736267449103,-3523.38,0.00010134,2]
[348014206,1736267449117,-2404.94,0.00010134,2]
[348014208,1736267449128,-902.2,0.00010134,2]
[348014210,1736267449137,-6146.81,0.00010134,2]
[348014212,1736267449147,-500.0,0.00010134,2]
[348014214,1736267449157,-977.25,0.00010134,2]
[348014216,1736267449167,-800.04,0.00010134,2]
[348014218,1736267449177,-823.04,0.00010134,2]
[348014220,1736267449186,-606.41,0.00010134,2]
[348014222,1736267449196,-1003.71,0.00010134,2]
[348014224,1736267449205,-282.82598834,0.00010134,2]
[348014226,1736267449215,-502.24241625,0.00010134,2]
[348014228,1736267449225,-300.6661881,0.00010134,2]
[348014230,1736267449237,-501.61989621,0.00010134,2]
[348014232,1736267449247,-1094.17,0.00010134,2]
[348014234,1736267449258,-500.0,0.00010134,2]
[348014236,1736267449269,-1189.13,0.00010134,2]
[348014238,1736267449281,-500.0,0.00010134,2]
[348014240,1736267449291,-8998.760753,0.00010134,2]
[348014242,1736267449302,-764.34,0.00010134,2]
[348014244,1736267449312,-1130.65,0.00010134,2]
[348014246,1736267449322,-313.31406,0.00010134,2]
[348014248,1736267449331,-500.0,0.00010134,2]
[348014250,1736267449343,-500.0,0.00010134,2]
[348014252,1736267449353,-209.941397,0.00010134,2]
[348014254,1736267449363,-1389.48,0.00010134,2]
[348014256,1736267449374,-500.0,0.00010134,2]
[348014258,1736267449384,-827.3,0.00010134,2]
[348014260,1736267449394,-976.28,0.00010134,2]
[348014262,1736267449404,-1057.82,0.00010134,2]
[348014264,1736267449413,-827.52,0.00010134,2]
[348014266,1736267449424,-736.09,0.00010134,2]
[348014268,1736267449434,-501.70672907,0.00010134,2]
[348014270,1736267449443,-972.73,0.00010134,2]
[348014272,1736267449453,-8403.546868,0.00010134,2]
[348014274,1736267449463,-501.81930994,0.00010134,2]
[348014276,1736267449473,-508.87,0.00010134,2]
[348014278,1736267449485,-501.31719963,0.00010134,2]
[348014281,1736267449496,-1238.35,0.00010134,2]
[348014282,1736267449506,-500.0,0.00010134,2]
[348014285,1736267449517,-1517.5,0.00010134,2]
[348014287,1736267449529,-523.19194113,0.00010134,2]
[348014289,1736267449539,-501.40142321,0.00010134,2]
[348014291,1736267449549,-697.07,0.00010134,2]
[348014293,1736267449559,-500.0,0.00010134,2]
[348014295,1736267449569,-500.0,0.00010134,2]
[348014297,1736267449578,-500.0,0.00010134,2]
[348014299,1736267449588,-650.94,0.00010134,2]
[348014301,1736267449598,-592.92,0.00010134,2]
[348014303,1736267449607,-637.86,0.00010134,2]
[348014305,1736267449617,-500.0,0.00010134,2]
[348014307,1736267449626,-862.91,0.00010134,2]
[348014309,1736267449636,-4562.17,0.00010134,2]
[348014311,1736267449645,-639.51,0.00010134,2]
[348014313,1736267449655,-1167.01,0.00010134,2]
[348014315,1736267449667,-525.32,0.00010134,2]
[348014317,1736267449677,-1392.78,0.00010134,2]
[348014319,1736267449687,-500.0,0.00010134,2]
[348014321,1736267449697,-500.0,0.00010134,2]
[348014323,1736267449707,-649.96,0.00010134,2]
[348014325,1736267449717,-726.27,0.00010134,2]
[348014327,1736267449726,-561.25,0.00010134,2]
[348014329,1736267449736,-1064.65,0.00010134,2]
[348014331,1736267449746,-500.0,0.00010134,2]
[348014333,1736267449756,-500.0,0.00010134,2]
[348014335,1736267449766,-650.41,0.00010134,2]
[348014337,1736267449775,-644.05,0.00010134,2]
[348014339,1736267449784,-2280.46,0.00010134,2]
[348014341,1736267449794,-523.65,0.00010134,2]
[348014343,1736267449804,-500.0,0.00010134,2]
[348014345,1736267449814,-1006.05,0.00010134,2]
[348014347,1736267449824,-500.0,0.00010134,2]
[348014349,1736267449833,-500.0,0.00010134,2]
[348014351,1736267449843,-500.0,0.00010134,2]
[348014353,1736267449853,-531.37,0.00010134,2]
[348014355,1736267449862,-500.0,0.00010134,2]
[348014357,1736267449872,-500.0,0.00010134,2]
[348014359,1736267449882,-500.0,0.00010134,2]
[348014361,1736267449891,-500.0,0.00010134,2]
[348014363,1736267449901,-500.0,0.00010134,2]
[348014365,1736267449911,-506.91,0.00010134,2]
[348014367,1736267449920,-500.0,0.00010134,2]
[348014368,1736267449930,-500.0,0.00010134,2]
[348014371,1736267449940,-500.0,0.00010134,2]
[348014372,1736267449949,-500.0,0.00010134,2]
[348014375,1736267449960,-500.0,0.00010134,2]
[348014377,1736267449969,-500.0,0.00010134,2]
[348014379,1736267449979,-1071.03,0.00010134,2]
[348014381,1736267449992,-500.0,0.00010134,2]
[348014383,1736267450003,-500.0,0.00010134,2]
[348014385,1736267450012,-495.74031333,0.00010134,2]
[348014387,1736267450022,-572.31,0.00010134,2]
[348014389,1736267450031,-500.0,0.00010134,2]
[348014391,1736267450041,-710.48,0.00010134,2]
[348014393,1736267450051,-500.0,0.00010134,2]
[348014395,1736267450060,-698.76,0.00010134,2]
[348014397,1736267450070,-1800.27,0.00010134,2]
[348014399,1736267450080,-500.0,0.00010134,2]
[348014401,1736267450091,-936.59,0.00010134,2]
[348014403,1736267450100,-1115.17,0.00010134,2]
[348014405,1736267450112,-500.0,0.00010134,2]
[348014407,1736267450123,-1255.6,0.00010134,2]
[348014409,1736267450132,-621.13,0.00010134,2]
[348014411,1736267450143,-500.0,0.00010134,2]
[348014413,1736267450153,-743.76,0.00010134,2]
[348014415,1736267450163,-780.66,0.00010134,2]
[348014417,1736267450173,-500.0,0.00010134,2]
[348014419,1736267450183,-1327.66,0.00010134,2]
[348014421,1736267450193,-504.67,0.00010134,2]
[348014423,1736267450203,-500.0,0.00010134,2]
[348014425,1736267450213,-889.21,0.00010134,2]
[348014427,1736267450223,-1002.17,0.00010134,2]
[348014429,1736267450235,-500.0,0.00010134,2]
[348014431,1736267450246,-500.0,0.00010134,2]
[348014434,1736267450256,-1267.29,0.00010134,2]
[348014436,1736267450265,-1106.01,0.00010134,2]
[348014438,1736267450276,-986.75,0.00010134,2]
[348014440,1736267450286,-532.18,0.00010134,2]
[348014442,1736267450296,-779.52,0.00010134,2]
[348014444,1736267450307,-500.0,0.00010134,2]
[348014446,1736267450318,-500.0,0.00010134,2]
[348014448,1736267450328,-908.39,0.00010134,2]
[348014450,1736267450338,-900.5,0.00010134,2]
[348014452,1736267450348,-500.0,0.00010134,2]
[348014454,1736267450358,-500.0,0.00010134,2]
[348014456,1736267450369,-500.0,0.00010134,2]
[348014458,1736267450379,-500.0,0.00010134,2]
[348014460,1736267450389,-500.0,0.00010134,2]
[348014462,1736267450399,-564.59,0.00010134,2]
[348014464,1736267450409,-776.21,0.00010134,2]
[348014466,1736267450419,-608.45,0.00010134,2]
[348014468,1736267450428,-824.88,0.00010134,2]
[348014470,1736267450439,-1239.8,0.00010134,2]
[348014472,1736267450448,-742.58,0.00010134,2]
[348014474,1736267450457,-853.99,0.00010134,2]
[348014476,1736267450467,-687.3,0.00010134,2]
[348014478,1736267450477,-760.53,0.00010134,2]
[348014481,1736267450490,-606.31,0.00010134,2]
[348014483,1736267450499,-702.01,0.00010134,2]
[348014485,1736267450509,-570.16,0.00010134,2]
[348014487,1736267450520,-572.93,0.00010134,2]
[348014489,1736267450530,-500.0,0.00010134,2]
[348014491,1736267450541,-500.0,0.00010134,2]
[348014493,1736267450551,-1729.76,0.00010134,2]
[348014495,1736267450562,-500.0,0.00010134,2]
[348014497,1736267450573,-871.59,0.00010134,2]
[348014499,1736267450584,-500.0,0.00010134,2]
[348014501,1736267450595,-908.21,0.00010134,2]
[348014504,1736267450606,-3191.89,0.00010134,2]
[348014527,1736267450830,-4791.14,0.00010134,2]
[348014530,1736267450842,-1152.15,0.00010134,2]
[348014532,1736267450851,-975.93,0.00010134,2]
[348014534,1736267450860,-2596.0,0.00010134,2]
[348014536,1736267450870,-500.0,0.00010134,2]
[348014538,1736267450879,-675.6,0.00010134,2]
[348014540,1736267450889,-500.0,0.00010134,2]
[348014542,1736267450900,-1792.92,0.00010134,2]
[348014544,1736267450910,-564.57,0.00010134,2]
[348014546,1736267450919,-577.03,0.00010134,2]
[348014548,1736267450929,-2547.6,0.00010134,2]